bitfinex/quotes_SOLUSD_20260217
["timestamp","ask_amount","ask_price","bid_price","bid_amount"]
[1771349598171,11.92755911,83.84,83.803,0.5]
[1771349598172,19.26971349,83.84,83.803,0.5]
[1771349598378,7.34215438,83.83,83.803,0.5]
[1771349598574,7.34215438,83.83,83.805,0.5]
[1771349598801,11.92904603,83.829,83.805,0.5]
[1771349599875,11.92904603,83.829,83.525,82.6489574]
[1771349599876,11.92904603,83.829,83.795,12.43383892]
[1771349600080,11.92904603,83.829,83.796,0.5]
[1771349600497,11.92904603,83.829,83.782,29.83913081]
[1771349600498,7.34215438,83.81,83.781,0.5]
[1771349600798,7.34215438,83.81,83.782,11.93573798]
[1771349600977,41.75664228,83.819,83.783,0.5]
[1771349601183,11.93046922,83.819,83.783,0.5]
[1771349602001,11.93046922,83.819,83.791,0.5]
[1771349603578,11.93046922,83.819,83.79,11.93450021]
[1771349603579,11.93046922,83.819,83.793,0.5]
[1771349605403,7.34215438,83.82,83.795,0.5]
[1771349605591,7.34215438,83.83,83.795,0.5]
[1771349605896,49.08833758,83.84,83.801,0.5]
[1771349606585,19.26963529,83.84,83.801,0.5]
[1771349606783,11.92748091,83.84,83.811,0.5]
[1771349607482,19.26963529,83.84,83.813,0.5]
[1771349607692,11.92748091,83.84,83.813,0.5]
[1771349607875,4.61729252,83.861,83.821,0.5]
[1771349607876,4.61729252,83.857,83.821,0.5]
[1771349608091,11.92335666,83.869,83.841,0.5]
[1771349609200,7.34215438,83.86,83.832,0.5]
[1771349609400,11.92477849,83.859,83.832,0.5]
[1771349610599,7.34215438,83.85,83.81,7.84215438]
[1771349610801,7.34215438,83.84,83.811,0.5]
[1771349611098,7.34215438,83.83,83.801,0.5]
[1771349612199,41.73672473,83.859,83.811,0.5]
[1771349612200,7.34215438,83.85,83.811,0.5]
[1771349612406,7.34215438,83.83,83.805,17.72]
[1771349612996,7.34215438,83.84,83.806,0.5]
[1771349613784,7.34215438,83.83,83.806,0.5]
[1771349613990,7.34215438,83.84,83.806,0.5]
[1771349614192,7.34215438,83.83,83.806,0.5]
[1771349614798,7.34215438,83.84,83.808,0.5]
[1771349616495,11.92762318,83.839,83.808,0.5]
[1771349616701,11.92762318,83.839,83.81,0.5]
[1771349616890,11.92762318,83.839,83.811,0.5]
[1771349617298,11.92705472,83.843,83.811,0.5]
[1771349617987,11.92659657,83.847,83.811,0.5]
[1771349618187,7.34215438,83.86,83.821,0.5]
[1771349618596,11.92477849,83.859,83.821,12.43013673]
[1771349618795,11.92477849,83.859,83.822,0.5]
[1771349619200,11.92477849,83.859,83.831,0.5]
[1771349619788,7.34215438,83.87,83.831,0.5]
[1771349619983,11.92335666,83.869,83.831,0.5]
[1771349620188,11.92122454,83.884,83.841,0.5]
[1771349620388,7.34215438,83.88,83.841,0.5]
[1771349620583,7.34215438,83.9,83.84,7.34215438]
[1771349620584,7.34215438,83.89,83.851,0.5]
[1771349621009,11.92051401,83.889,83.851,0.5]
[1771349621192,11.91909319,83.899,83.861,0.5]
[1771349621399,11.91909319,83.899,83.862,0.5]
[1771349622312,11.91909319,83.899,83.864,0.5]
[1771349622687,7.34215438,83.89,83.864,0.5]
[1771349623112,7.34215438,83.89,83.84,29.81839167]
[1771349623113,7.34215438,83.87,83.841,0.5]
[1771349623422,7.34215438,83.86,83.829,0.5]
[1771349623595,7.34215438,83.85,83.829,0.5]
[1771349623798,7.34215438,83.87,83.831,0.5]
[1771349624323,11.9223234,83.877,83.842,0.5]
[1771349624790,7.34215438,83.88,83.842,0.5]
[1771349624791,7.34215438,83.88,83.851,0.5]
[1771349624991,7.34215438,83.89,83.851,0.5]
[1771349625391,41.71782065,83.897,83.851,0.5]
[1771349625392,7.34215438,83.88,83.851,0.5]
[1771349626711,11.92193516,83.879,83.851,0.5]
[1771349627019,29.8016126,83.889,83.842,17.68]
[1771349627020,11.92133655,83.884,83.853,0.5]
[1771349627514,7.34215438,83.88,83.853,0.5]
[1771349628705,11.92193516,83.879,83.853,0.5]
[1771349628895,11.91980356,83.894,83.854,0.5]
[1771349629096,11.91980356,83.894,83.861,0.5]
[1771349630495,7.34215438,83.89,83.861,0.5]
[1771349631498,7.34215438,83.9,83.863,0.5]
[1771349631906,7.34215438,83.9,83.864,17.68]
[1771349632108,7.34215438,83.9,83.865,0.5]
[1771349633006,7.34215438,83.89,83.865,0.5]
[1771349633200,7.34215438,83.9,83.865,0.5]
[1771349633600,7.34215438,83.89,83.865,0.5]
[1771349633925,11.91909319,83.899,83.865,0.5]
[1771349634504,11.91848775,83.904,83.867,0.5]
[1771349634706,7.34215438,83.89,83.864,17.68]
[1771349634924,7.34215438,83.89,83.863,17.68]
[1771349635421,7.34215438,83.88,83.855,0.5]
[1771349635608,11.92051401,83.889,83.855,0.5]
[1771349636210,11.92051401,83.889,83.857,0.5]
[1771349636706,11.92051401,83.889,83.861,0.5]
[1771349637818,7.34215438,83.9,83.863,0.5]
[1771349638024,11.91850897,83.904,83.871,0.5]
[1771349638519,7.32146726,83.9,83.871,0.5]
[1771349638702,7.32146726,83.89,83.871,0.5]
[1771349639506,7.32146726,83.9,83.871,0.5]
[1771349639720,11.91909319,83.899,83.871,0.5]
[1771349639923,7.32146726,83.89,83.871,0.5]
[1771349640419,7.32146726,83.91,83.873,0.5]
[1771349640824,7.32146726,83.89,83.861,0.5]
[1771349641212,7.32146726,83.9,83.861,0.5]
[1771349641438,7.32146726,83.89,83.862,0.5]
[1771349641613,11.92051401,83.889,83.862,0.5]
[1771349641924,4.61729252,83.911,83.864,0.5]
[1771349641925,11.92003223,83.893,83.864,0.5]
[1771349642427,11.91917855,83.899,83.871,0.5]
[1771349642804,11.91767271,83.909,83.881,0.5]
[1771349643116,7.32146726,83.92,83.881,0.5]
[1771349643319,11.9150625,83.928,83.891,0.5]
[1771349643820,7.52146726,83.93,83.893,0.5]
[1771349644007,11.91483277,83.929,83.894,0.5]
[1771349645016,0.2,83.93,83.901,0.5]
[1771349645223,0.2,83.93,83.911,0.5]
[1771349645623,12.1147496,83.93,83.911,0.5]
[1771349645926,12.1147496,83.93,83.901,11.91880907]
[1771349646126,19.43621686,83.93,83.9,0.5]
[1771349646318,19.43621686,83.93,83.9,12.41891606]
[1771349646926,19.43621686,83.93,83.9,11.91891606]
[1771349647127,19.43621686,83.93,83.901,0.5]
[1771349647328,12.1147496,83.93,83.903,0.5]
[1771349647826,0.2,83.93,83.903,0.5]
[1771349648037,14.64293452,83.91,83.869,4.86086188]
[1771349648225,7.32146726,83.88,83.791,17.68]
[1771349648422,7.32146726,83.84,83.79,0.34717045]
[1771349648735,7.32146726,83.82,83.774,13.14]
[1771349648904,7.32146726,83.81,83.774,13.14]
[1771349649106,7.32146726,83.8,83.75,7.52146726]
[1771349649429,7.32146726,83.79,83.75,7.52146726]
[1771349649618,29.83151285,83.804,83.76,7.32146726]
[1771349649924,11.93203512,83.808,83.77,7.32146726]
[1771349650110,7.32146726,83.8,83.771,0.5]
[1771349650423,7.32146726,83.79,83.771,0.5]
[1771349650635,11.93203512,83.808,83.771,0.5]
[1771349650810,7.32146726,83.8,83.771,0.5]
[1771349651720,11.93232083,83.806,83.771,0.5]
[1771349652031,7.32146726,83.8,83.771,0.5]
[1771349652213,11.93232083,83.806,83.771,0.5]
[1771349652415,7.32146726,83.79,83.771,0.5]
[1771349652711,7.32146726,83.79,83.761,0.5]
[1771349652920,7.32146726,83.8,83.763,0.5]
[1771349653324,19.25607256,83.79,83.763,0.5]
[1771349653528,7.32146726,83.79,83.763,0.5]
[1771349654121,7.32146726,83.79,83.751,0.5]
[1771349654320,7.32146726,83.79,83.752,0.5]
[1771349654529,7.32146726,83.78,83.752,0.5]
[1771349655264,41.7691004,83.794,83.68,0.6]
[1771349655265,14.64293452,83.76,83.68,0.6]
[1771349655538,29.28586904,83.8,83.68,0.1]
[1771349655539,7.32146726,83.69,83.68,0.1]
[1771349656030,7.32146726,83.68,83.673,1e-08]
[1771349656611,0.48119227,83.708,83.673,1e-08]
[1771349656816,0.48119227,83.705,83.67,0.1]
[1771349657125,7.32146726,83.69,83.67,0.1]
[1771349657513,11.94900166,83.689,83.67,0.1]
[1771349657712,7.32146726,83.68,83.63,7.32146726]
[1771349657926,4.61729252,83.676,83.616,0.49595447]
[1771349658130,11.94900166,83.689,83.641,0.49595447]
[1771349658435,7.32146726,83.68,83.643,0.49595447]
[1771349658642,7.32146726,83.65,83.614,0.49595447]
[1771349658815,7.32146726,83.66,83.621,0.49595447]
[1771349659341,0.48119227,83.669,83.631,0.49595447]
[1771349659730,0.48119227,83.67,83.622,0.49595447]
[1771349659920,4.61729252,83.681,83.641,0.49595447]
[1771349659921,7.32146726,83.68,83.641,0.49595447]
[1771349660336,7.32146726,83.68,83.642,17.62]
[1771349660637,19.27034619,83.69,83.651,0.49595447]
[1771349660839,7.32146726,83.68,83.651,0.49595447]
[1771349661540,0.48119227,83.679,83.648,0.49595447]
[1771349661745,7.32146726,83.68,83.65,7.32146726]
[1771349661925,7.32146726,83.69,83.66,7.32146726]
[1771349662116,0.48119227,83.702,83.661,0.49595447]
[1771349662117,7.32146726,83.7,83.661,0.49595447]
[1771349662313,7.32146726,83.7,83.663,0.49595447]
[1771349662720,7.32146726,83.7,83.67,7.32146726]
[1771349662918,29.86146258,83.72,83.671,0.49595447]
[1771349662919,7.32146726,83.71,83.671,0.49595447]
[1771349663537,0.48119227,83.708,83.671,0.49595447]
[1771349663733,7.32146726,83.71,83.673,0.49595447]
[1771349664137,19.26754407,83.71,83.673,0.49595447]
[1771349664333,0.48119227,83.735,83.691,0.49595447]
[1771349664526,0.48119227,83.729,83.691,0.49595447]
[1771349665018,7.32146726,83.72,83.691,0.49595447]
[1771349665220,0.48119227,83.729,83.691,0.49595447]
[1771349665733,7.32146726,83.72,83.691,0.49595447]
[1771349666038,0.48119227,83.729,83.693,0.49595447]
[1771349666424,0.48119227,83.728,83.693,0.49595447]
[1771349666624,0.48119227,83.728,83.694,17.62]
[1771349666824,7.32146726,83.72,83.694,17.62]
[1771349667436,0.48119227,83.728,83.694,17.62]
[1771349667940,0.48119227,83.726,83.693,12.44436838]
[1771349668139,0.48119227,83.719,83.692,17.6]
[1771349668643,0.48119227,83.729,83.7,7.32146726]
[1771349669029,0.48119227,83.729,83.694,0.49595447]
[1771349669441,7.32146726,83.72,83.694,0.49595447]
[1771349669643,0.48119227,83.729,83.694,0.49595447]
[1771349670643,0.48119227,83.727,83.694,0.49595447]
[1771349672135,4.61729252,83.737,83.701,0.49595447]
[1771349672329,7.32146726,83.73,83.702,17.6]
[1771349672637,11.94284636,83.733,83.702,17.6]
[1771349672842,0.48119227,83.729,83.698,17.6]
[1771349673044,0.48119227,83.729,83.687,0.49595447]
[1771349673244,0.48119227,83.729,83.69,7.81742173]
[1771349673447,0.48119227,83.726,83.691,0.49595447]
[1771349674148,0.48119227,83.726,83.7,7.32146726]
[1771349674442,4.61729252,83.742,83.711,0.49595447]
[1771349674630,0.48119227,83.745,83.72,7.32146726]
[1771349674834,11.93926577,83.758,83.721,0.49595447]
[1771349675638,12.42045804,83.758,83.721,0.49595447]
[1771349675838,0.48119227,83.757,83.721,0.49595447]
[1771349676054,0.48119227,83.729,83.697,17.58]
[1771349676353,0.48119227,83.729,83.691,17.58]
[1771349676732,0.48119227,83.725,83.69,7.32146726]
[1771349676931,0.48119227,83.725,83.691,11.94871611]
[1771349677131,0.48119227,83.725,83.7,7.32146726]
[1771349677636,0.48119227,83.725,83.693,17.58]
[1771349678043,0.48119227,83.725,83.694,0.49595447]
[1771349678353,5.09848479,83.732,83.7,7.32146726]
[1771349678644,4.61729252,83.727,83.7,7.32146726]
[1771349678857,0.48119227,83.725,83.695,17.58]
[1771349680053,0.48119227,83.725,83.696,11.94800229]
[1771349680552,0.48119227,83.725,83.7,7.32146726]
[1771349681033,11.94400649,83.724,83.7,7.32146726]
[1771349681649,0.48119227,83.723,83.694,0.49595447]
[1771349681846,7.80265953,83.72,83.695,17.58]
[1771349682044,0.48119227,83.72,83.695,17.58]
[1771349682445,11.94400649,83.724,83.7,7.32146726]
[1771349683851,11.94400649,83.724,83.695,17.58]
[1771349684057,0.48119227,83.723,83.695,17.58]
[1771349684244,11.94400649,83.724,83.7,7.32146726]
[1771349684445,11.94400649,83.724,83.7,7.78278279]
[1771349684738,11.94400649,83.724,83.7,0.46131553]
[1771349685250,7.32146726,83.72,83.695,17.58]
[1771349685452,0.46871256,83.719,83.695,17.58]
[1771349685654,0.46871256,83.719,83.689,17.58]
[1771349686861,11.94400649,83.724,83.691,0.46131553]
[1771349687236,11.94400649,83.724,83.7,7.32146726]
[1771349687438,0.46871256,83.729,83.701,0.46131553]
[1771349687650,11.94343588,83.728,83.701,0.46131553]
[1771349687849,11.94343588,83.728,83.7,7.32146726]
[1771349687850,0.46871256,83.727,83.7,7.32146726]
[1771349688153,0.46871256,83.727,83.694,17.58]
[1771349688855,0.46871256,83.716,83.68,7.78278279]
[1771349689060,0.46871256,83.716,83.681,29.51014399]
[1771349689362,0.46871256,83.716,83.681,17.56]
[1771349689556,0.46871256,83.714,83.681,29.51014399]
[1771349690354,0.46871256,83.714,83.682,0.46131553]
[1771349690662,0.46871256,83.723,83.691,0.46131553]
[1771349690865,7.32146726,83.72,83.691,0.46131553]
[1771349691067,11.94267097,83.734,83.682,0.46131553]
[1771349691266,7.32146726,83.72,83.691,0.46131553]
[1771349691474,7.32146726,83.73,83.691,0.46131553]
[1771349691661,0.46871256,83.735,83.711,0.46131553]
[1771349691842,0.46871256,83.735,83.712,0.46131553]
[1771349692049,0.46871256,83.735,83.721,0.46131553]
[1771349692256,0.46871256,83.735,83.723,0.46131553]
[1771349692566,4.61729252,83.759,83.723,0.46131553]
[1771349692766,4.61729252,83.759,83.73,7.32146726]
[1771349692967,4.61729252,83.759,83.731,0.45518027]
[1771349693153,11.9387236,83.762,83.731,0.45518027]
[1771349693564,4.61729252,83.766,83.731,0.45518027]
[1771349694268,4.61729252,83.766,83.732,12.3980456]
[1771349694753,4.61729252,83.767,83.741,0.45518027]
[1771349695469,4.61729252,83.771,83.741,0.45518027]
[1771349695667,30.30144348,83.788,83.751,0.45518027]
[1771349695854,4.61729252,83.784,83.751,0.45518027]
[1771349696166,11.93502571,83.787,83.751,0.45518027]
[1771349696370,0.46409852,83.801,83.77,7.32146726]
[1771349696667,0.46409852,83.843,83.791,0.45518027]
[1771349696869,11.92634547,83.848,83.82,7.32146726]
[1771349697061,0.46409852,83.839,83.8,7.32146726]
[1771349697669,11.92904603,83.829,83.8,7.32146726]
[1771349697847,0.46409852,83.829,83.8,7.33412325]
[1771349698347,11.92763245,83.839,83.81,7.78930352]
[1771349698556,11.92763245,83.839,83.811,0.45518027]
[1771349698757,11.92620067,83.849,83.82,7.33412325]
[1771349699162,12.39029919,83.849,83.812,17.68]
[1771349699862,12.39029919,83.849,83.82,7.33412325]
[1771349700457,7.53412325,83.86,83.82,7.33412325]
[1771349700458,0.46409852,83.858,83.821,0.45518027]
[1771349700756,41.73672473,83.859,83.791,0.45518027]
[1771349700757,4.61729252,83.827,83.791,0.45518027]
[1771349700969,0.46409852,83.826,83.79,7.33412325]
[1771349701361,4.61729252,83.827,83.781,18.13518027]
[1771349701362,5.08139104,83.837,83.81,7.33412325]
[1771349701663,4.61729252,83.837,83.81,7.33412325]
[1771349701861,4.61729252,83.833,83.801,0.45518027]
[1771349702062,4.61729252,83.833,83.802,11.93288942]
[1771349702373,14.82,83.854,83.802,11.93288942]
[1771349702374,4.61729252,83.847,83.82,7.33412325]
[1771349702676,4.61729252,83.842,83.82,7.78930352]
[1771349702874,0.2,83.86,83.831,0.45518027]
[1771349703061,0.2,83.86,83.84,7.33412325]
[1771349704067,0.2,83.86,83.841,0.45518027]
[1771349704274,0.2,83.86,83.85,7.33412325]
[1771349704778,0.2,83.86,83.842,0.45518027]
[1771349704973,11.92477849,83.859,83.842,0.45518027]
[1771349705154,0.2,83.86,83.85,7.33412325]
[1771349705358,0.46409852,83.881,83.85,7.78930352]
[1771349705553,7.33412325,83.89,83.86,7.33412325]
[1771349705554,12.38476993,83.888,83.86,7.33412325]
[1771349705776,0.46409852,83.887,83.86,7.33412325]
[1771349706174,11.92094032,83.886,83.86,7.33412325]
[1771349706380,0.46409852,83.885,83.86,7.33412325]
[1771349706777,0.46409852,83.885,83.851,0.45518027]
[1771349707465,0.46409852,83.885,83.852,11.92577398]
[1771349707867,0.46409852,83.885,83.86,7.33412325]
[1771349708376,11.92122454,83.884,83.86,7.33412325]
[1771349708577,0.46409852,83.885,83.86,7.33412325]
[1771349709088,11.91824086,83.905,83.88,7.33412325]
[1771349709983,0.46409852,83.904,83.871,0.45518027]
[1771349710561,11.91852496,83.903,83.871,0.45518027]
[1771349710762,4.61729252,83.907,83.881,0.45518027]
[1771349711077,0.46409852,83.906,83.87,7.33412325]
[1771349711282,7.33412325,83.89,83.866,17.64]
[1771349711581,0.46409852,83.889,83.851,17.64]
[1771349711879,0.46409852,83.889,83.851,29.5659162]
[1771349712179,4.61729252,83.897,83.861,0.45518027]
[1771349712480,0.46409852,83.896,83.861,0.45518027]
[1771349712678,0.46409852,83.894,83.861,0.45518027]
[1771349713665,0.46409852,83.894,83.86,7.33412325]
[1771349713867,0.46409852,83.889,83.843,0.45518027]
[1771349714074,0.46409852,83.889,83.67,26.21653164]
[1771349714075,0.46409852,83.879,83.841,0.45518027]
[1771349714387,0.46409852,83.876,83.841,0.45518027]
[1771349714576,4.61729252,83.877,83.86,7.33412325]
[1771349714769,4.61729252,83.89,83.87,7.33412325]
[1771349714968,4.61729252,83.89,83.861,0.47957358]
[1771349715581,4.61729252,83.89,83.844,29.81727535]
[1771349715582,0.47589536,83.876,83.84,24.95412325]
[1771349715885,0.47589536,83.876,83.842,0.47957358]
[1771349716068,0.47589536,83.876,83.85,7.33412325]
[1771349716785,0.47589536,83.889,83.86,7.33412325]
[1771349716989,0.47589536,83.896,83.827,0.47957358]
[1771349717183,0.47589536,83.879,83.841,0.47957358]
[1771349717571,0.47589536,83.89,83.86,7.33412325]
[1771349717965,4.61729252,83.897,83.861,0.47957358]
[1771349718368,0.47589536,83.896,83.861,0.47957358]
[1771349718683,0.47589536,83.896,83.87,7.33412325]
[1771349718684,11.91966148,83.895,83.87,7.33412325]
[1771349718861,0.47589536,83.886,83.857,0.47957358]
[1771349719067,0.47589536,83.886,83.85,7.33412325]
[1771349719265,0.47589536,83.879,83.84,20.99412325]
[1771349719487,0.47589536,83.869,83.84,13.66]
[1771349719670,0.47589536,83.869,83.84,20.99412325]
[1771349720566,0.47589536,83.869,83.802,29.83204818]
[1771349720767,0.47589536,83.869,83.765,47.75247393]
[1771349720768,0.47589536,83.858,83.821,0.47957358]
[1771349721191,11.92477849,83.859,83.84,7.33412325]
[1771349721372,11.92477849,83.859,83.831,0.47957358]
[1771349722870,29.8116337,83.86,83.831,0.47957358]
[1771349723293,12.39939419,83.868,83.831,0.47957358]
[1771349723473,0.47589536,83.867,83.833,0.47957358]
[1771349724004,0.47589536,83.849,83.782,0.47957358]
[1771349724186,0.47589536,83.849,83.811,0.47957358]
[1771349724486,0.47589536,83.858,83.83,7.33412325]
[1771349724684,4.61729252,83.857,83.821,0.47957358]
[1771349724866,11.92520511,83.856,83.83,7.33412325]
[1771349725066,11.92520511,83.856,83.822,12.40961581]
[1771349725265,12.40110047,83.856,83.823,0.47957358]
[1771349725868,11.92520511,83.856,83.823,0.47957358]
[1771349726064,0.47589536,83.855,83.823,0.47957358]
[1771349726289,0.47589536,83.855,83.83,7.33412325]
[1771349726500,0.47589536,83.855,83.823,0.47957358]
[1771349726792,0.47589536,83.855,83.83,7.33412325]
[1771349726985,11.92520511,83.856,83.831,0.47957358]
[1771349727373,11.9242506,83.863,83.841,0.47957358]
[1771349727581,11.9242506,83.863,83.831,0.47957358]
[1771349727887,0.47589536,83.877,83.841,0.47957358]
[1771349728081,4.61729252,83.882,83.851,0.47957358]
[1771349728479,5.09318788,83.882,83.851,0.47957358]
[1771349728987,11.92051401,83.889,83.852,11.92577398]
[1771349729177,11.92051401,83.889,83.853,0.47957358]
[1771349729695,0.47589536,83.889,83.861,0.47957358]
[1771349729882,4.61729252,83.887,83.861,0.47957358]
[1771349730381,0.47589536,83.879,83.841,0.47957358]
[1771349730579,0.47589536,83.879,83.85,7.33412325]
[1771349730768,4.61729252,83.887,83.87,7.33412325]
[1771349730975,4.61729252,83.887,83.861,0.47957358]
[1771349732096,4.61729252,83.897,83.861,0.47957358]
[1771349732294,0.47589536,83.892,83.861,0.47957358]
[1771349732770,0.47589536,83.892,83.697,26.21653164]
[1771349732771,0.47589536,83.879,83.818,0.47957358]
[1771349733082,0.47589536,83.879,83.84,7.33412325]
[1771349733282,0.47589536,83.879,83.85,7.33412325]
[1771349733889,11.9220773,83.878,83.85,7.33412325]
[1771349734090,0.47589536,83.879,83.851,11.9259162]
[1771349734394,12.39647185,83.889,83.861,0.47957358]
[1771349735193,4.61729252,83.89,83.861,0.47957358]
[1771349736293,11.92051401,83.889,83.861,0.47957358]
[1771349736878,11.92051401,83.889,83.862,11.92435191]
[1771349737098,11.92051401,83.889,83.861,0.47957358]
[1771349737978,11.91943176,83.897,83.87,7.33412325]
[1771349738179,11.91909319,83.899,83.871,0.47957358]
[1771349738384,11.91767271,83.909,83.881,0.47957358]
[1771349738596,41.7118545,83.909,83.881,0.47957358]
[1771349739092,0.47589536,83.908,83.872,0.47957358]
[1771349739500,0.47589536,83.908,83.88,7.33412325]
[1771349740288,11.91795678,83.907,83.88,7.33412325]
[1771349740490,41.71284874,83.907,83.88,7.33412325]
[1771349740690,5.09318788,83.908,83.881,11.92165091]
[1771349740892,5.09318788,83.908,83.882,0.47957358]
[1771349741093,11.91748154,83.911,83.89,7.33412325]
[1771349741398,11.91748154,83.911,83.889,0.47957358]
[1771349741582,0.47589536,83.917,83.891,0.47957358]
[1771349741987,11.91667858,83.916,83.891,0.47957358]
[1771349742384,5.09318788,83.917,83.891,0.47957358]
[1771349742589,17.00978898,83.917,83.892,11.92008773]
[1771349742779,17.00978898,83.917,83.891,0.47957358]
[1771349743201,17.00978898,83.917,83.892,11.92008773]
[1771349743500,17.00978898,83.917,83.891,0.47957358]
[1771349744107,11.91601931,83.921,83.891,0.47957358]
[1771349744288,4.61729252,83.917,83.893,0.47957358]
[1771349744489,11.91667858,83.916,83.893,0.47957358]
[1771349744801,7.53412325,83.93,83.901,0.45682807]
[1771349744802,0.2,83.93,83.901,0.45682807]
[1771349745007,11.91483277,83.929,83.901,0.45682807]
[1771349745301,0.47133552,83.928,83.901,0.45682807]
[1771349747089,11.9151167,83.927,83.901,0.45682807]
[1771349747604,0.2,83.93,83.903,0.45682807]
[1771349747916,0.2,83.93,83.91,7.33412325]
[1771349748092,12.1148208,83.93,83.91,7.33412325]
[1771349748294,12.58615632,83.93,83.903,0.45682807]
[1771349750224,0.47133552,83.929,83.9,7.33412325]
[1771349750400,7.33412325,83.92,83.895,0.45682807]
[1771349750593,0.47133552,83.919,83.891,0.45682807]
[1771349750912,0.47133552,83.916,83.88,24.81412325]
[1771349751109,0.47133552,83.909,83.88,24.81412325]
[1771349752296,0.47133552,83.907,83.88,7.33412325]
[1771349752515,0.47133552,83.907,83.874,0.45682807]
[1771349752804,0.47133552,83.907,83.875,17.48]
[1771349753011,0.47133552,83.907,83.88,7.33412325]
[1771349753391,0.47133552,83.907,83.876,0.48211684]
[1771349753597,0.49127383,83.899,83.87,7.33412325]
[1771349753798,0.49127383,83.899,83.867,17.48]
[1771349753998,0.49127383,83.889,83.867,17.48]
[1771349754309,0.49127383,83.887,83.852,0.48211684]
[1771349754617,0.49127383,83.879,83.843,0.48211684]
[1771349755317,0.49127383,83.876,83.843,0.48211684]
[1771349756297,0.49127383,83.874,83.85,7.33412325]
[1771349756724,0.49127383,83.874,83.843,0.48211684]
[1771349756901,0.49127383,83.874,83.85,7.33412325]
[1771349757797,4.61729252,83.877,83.851,0.48211684]
[1771349758013,11.92127352,83.884,83.86,7.33412325]
[1771349759427,4.61729252,83.895,83.849,17.46]
[1771349759428,29.79650956,83.903,83.871,0.48211684]
[1771349759720,4.61729252,83.9,83.871,0.48211684]
[1771349759923,0.49127383,83.897,83.861,0.48211684]
[1771349760292,0.49127383,83.897,83.86,24.78243368]
[1771349760293,0.49127383,83.897,83.87,7.32243368]
[1771349760532,4.61729252,83.898,83.871,0.48211684]
[1771349760816,0.49127383,83.897,83.863,0.48211684]
[1771349761023,0.49127383,83.897,83.863,17.94211684]
[1771349761417,0.49127383,83.886,83.855,0.48211684]
[1771349761801,0.49127383,83.886,83.86,7.32243368]
[1771349762127,0.49127383,83.886,83.855,0.48211684]
[1771349762513,0.49127383,83.886,83.86,7.32243368]
[1771349762725,0.49127383,83.892,83.861,0.48211684]
[1771349763633,0.49127383,83.887,83.85,7.32243368]
[1771349763918,0.49127383,83.859,83.83,19.25133741]
[1771349764116,0.49127383,83.859,83.83,7.32243368]
[1771349764414,0.49127383,83.859,83.829,0.48211684]
[1771349764615,0.49127383,83.859,83.83,7.32243368]
[1771349764917,0.49127383,83.859,83.829,0.48211684]
[1771349765298,0.49127383,83.859,83.821,11.93006046]
[1771349765502,0.49127383,83.859,83.821,12.4121773]
[1771349765703,0.49127383,83.857,83.821,12.4121773]
[1771349765909,0.49127383,83.857,83.821,11.93006046]
[1771349766102,0.49127383,83.857,83.822,0.48211684]
[1771349766910,0.49127383,83.857,83.812,29.82855269]
[1771349766911,0.49127383,83.849,83.81,7.32243368]
[1771349767107,0.49127383,83.839,83.8,7.32243368]
[1771349767310,4.61729252,83.847,83.797,0.48211684]
[1771349767311,0.49127383,83.829,83.797,0.48211684]
[1771349768002,11.92918833,83.828,83.797,0.48211684]
[1771349768198,11.92918833,83.828,83.793,17.46]
[1771349768199,0.49127383,83.838,83.801,0.48211684]
[1771349768403,0.49127383,83.829,83.795,0.48211684]
[1771349768633,0.49127383,83.829,83.801,0.48211684]
[1771349768808,41.74668113,83.839,83.801,0.48211684]
[1771349768809,0.49127383,83.838,83.801,0.48211684]
[1771349769728,11.92762318,83.839,83.811,0.48211684]
[1771349770222,0.49127383,83.836,83.802,0.48211684]
[1771349770425,7.32243368,83.83,83.802,0.48211684]
[1771349770626,4.61729252,83.837,83.804,0.48211684]
[1771349770936,4.61729252,83.837,83.811,0.48211684]
[1771349772210,0.49127383,83.835,83.81,7.32243368]
[1771349772425,7.81370751,83.83,83.803,0.48211684]
[1771349772607,0.49127383,83.83,83.803,0.48211684]
[1771349775121,0.47195178,83.828,83.792,0.47949819]
[1771349777129,11.92904603,83.829,83.793,11.93417111]
[1771349777334,11.92819228,83.835,83.801,0.47949819]
[1771349777728,12.40014406,83.835,83.801,0.47949819]
[1771349778027,4.61729252,83.837,83.801,0.47949819]
[1771349778331,11.92805,83.836,83.801,0.47949819]
[1771349779034,0.47195178,83.835,83.801,0.47949819]
[1771349780207,0.47195178,83.833,83.801,0.47949819]
[1771349780427,0.47195178,83.826,83.796,17.5]
[1771349781033,0.47195178,83.826,83.797,0.47949819]
[1771349783946,11.92961526,83.825,83.797,0.47949819]